[Event "Titled Tuesday Blitz November 08 Late 2022"]
[White "Ibarra Jerez, Jose Carlos"]
[Black "Ristic, Nebojsa B"]
[WhiteFideId "2226332"]
[BlackFideId "935468"]
[WhiteElo "2638"]
[BlackElo "2320"]
[Result "1-0"]
[Round "09"]
[TimeControl "180+1"]
[Date "2022.11.08"]
[WhiteClock "0:00:20"]
[BlackClock "0:01:21"]

1. Nf3 {[%clk 0:03:00]}  Nf6 {[%clk 0:02:59]} 2. g3 {[%clk 0:03:01]}  b6 {[%clk 0:02:59]} 3. Bg2 {[%clk 0:03:01]}  Bb7 {[%clk 0:03:00]} 4. O-O {[%clk 0:03:00]}  g6 {[%clk 0:03:01]} 5. b3 {[%clk 0:02:59]}  Bg7 {[%clk 0:03:01]} 6. Bb2 {[%clk 0:03:00]}  O-O {[%clk 0:03:01]} 7. c4 {[%clk 0:03:00]}  e6 {[%clk 0:03:01]} 8. Nc3 {[%clk 0:02:42]}  Ne4 {[%clk 0:03:01]} 9. Qc2 {[%clk 0:02:33]}  Nxc3 {[%clk 0:03:00]} 10. Bxc3 {[%clk 0:02:33]}  d6 {[%clk 0:03:00]} 11. Rac1 {[%clk 0:02:23]}  Nd7 {[%clk 0:02:58]} 12. d4 {[%clk 0:02:18]}  Qe7 {[%clk 0:02:57]} 13. e4 {[%clk 0:02:16]}  e5 {[%clk 0:02:57]} 14. Rfe1 {[%clk 0:02:12]}  a5 {[%clk 0:02:56]} 15. Rcd1 {[%clk 0:02:12]}  exd4 {[%clk 0:02:52]} 16. Nxd4 {[%clk 0:02:11]}  Nc5 {[%clk 0:02:52]} 17. h3 {[%clk 0:02:06]}  Ne6 {[%clk 0:02:52]} 18. Nf5 {[%clk 0:02:02]}  gxf5 {[%clk 0:02:14]} 19. exf5 {[%clk 0:02:01]}  Bxg2 {[%clk 0:02:15]} 20. Kxg2 {[%clk 0:01:58]}  Bxc3 {[%clk 0:02:11]} 21. Qxc3 {[%clk 0:01:58]}  Rae8 {[%clk 0:02:10]} 22. Re4 {[%clk 0:01:44]}  h5 {[%clk 0:02:04]} 23. Rd5 {[%clk 0:01:13]}  c6 {[%clk 0:01:58]} 24. f6 {[%clk 0:01:10]}  cxd5 {[%clk 0:01:53]} 25. fxe7 {[%clk 0:01:10]}  dxe4 {[%clk 0:01:54]} 26. exf8=Q+ {[%clk 0:01:09]}  Kxf8 {[%clk 0:01:49]} 27. Qh8+ {[%clk 0:01:06]}  Ke7 {[%clk 0:01:49]} 28. Qxh5 {[%clk 0:01:07]}  Nc5 {[%clk 0:01:49]} 29. Qg5+ {[%clk 0:01:05]}  f6 {[%clk 0:01:49]} 30. Qg7+ {[%clk 0:01:04]}  Ke6 {[%clk 0:01:49]} 31. h4 {[%clk 0:01:05]}  Nd3 {[%clk 0:01:46]} 32. h5 {[%clk 0:01:04]}  Ne1+ {[%clk 0:01:46]} 33. Kf1 {[%clk 0:01:03]}  Nf3 {[%clk 0:01:47]} 34. h6 {[%clk 0:00:56]}  d5 {[%clk 0:01:47]} 35. cxd5+ {[%clk 0:00:55]}  Ke5 {[%clk 0:01:47]} 36. h7 {[%clk 0:00:51]}  Rc8 {[%clk 0:01:47]} 37. Kg2 {[%clk 0:00:36]}  Rc1 {[%clk 0:01:44]} 38. h8=Q {[%clk 0:00:27]}  Rg1+ {[%clk 0:01:38]} 39. Kh3 {[%clk 0:00:27]}  Rh1+ {[%clk 0:01:38]} 40. Kg4 {[%clk 0:00:27]}  Nh2+ {[%clk 0:01:31]} 41. Kh5 {[%clk 0:00:21]}  Nf3+ {[%clk 0:01:25]} 42. Kg6 {[%clk 0:00:21]}  Rxh8 {[%clk 0:01:22]} 43. Qxf6+ {[%clk 0:00:20]}  Kxd5 {[%clk 0:01:22]} 44. Qxh8 {[%clk 0:00:21]}  Ne5+ {[%clk 0:01:22]} 45. Kf5 {[%clk 0:00:21]}  Nf7 {[%clk 0:01:21]} 46. Qg8 {[%clk 0:00:20]} 1-0


[Site "https://www.chess.com"]

[Event "Titled Tuesday Blitz November 08 Late 2022"]
[White "Indjic, Aleksandar"]
[Black "Nakamura, Hikaru"]
[WhiteFideId "911925"]
[BlackFideId "2016192"]
[WhiteElo "2592"]
[BlackElo "2909"]
[Result "0-1"]
[Round "09"]
[TimeControl "180+1"]
[Date "2022.11.08"]
[WhiteClock "0:00:03"]
[BlackClock "0:00:31"]

1. d4 {[%clk 0:03:00]}  Nf6 {[%clk 0:02:55]} 2. c4 {[%clk 0:03:00]}  e6 {[%clk 0:02:56]} 3. Nc3 {[%clk 0:03:00]}  Bb4 {[%clk 0:02:55]} 4. Qc2 {[%clk 0:03:00]}  O-O {[%clk 0:02:55]} 5. Nf3 {[%clk 0:03:00]}  d5 {[%clk 0:02:54]} 6. Bg5 {[%clk 0:03:00]}  h6 {[%clk 0:02:53]} 7. Bxf6 {[%clk 0:03:00]}  Qxf6 {[%clk 0:02:54]} 8. a3 {[%clk 0:03:00]}  Bxc3+ {[%clk 0:02:54]} 9. Qxc3 {[%clk 0:03:01]}  dxc4 {[%clk 0:02:54]} 10. Qxc4 {[%clk 0:03:00]}  Nc6 {[%clk 0:02:55]} 11. e3 {[%clk 0:02:57]}  e5 {[%clk 0:02:47]} 12. d5 {[%clk 0:02:57]}  e4 {[%clk 0:02:33]} 13. Nd2 {[%clk 0:02:55]}  Ne7 {[%clk 0:02:29]} 14. Rb1 {[%clk 0:02:33]}  Bf5 {[%clk 0:02:24]} 15. g4 {[%clk 0:02:19]}  Bxg4 {[%clk 0:01:53]} 16. Nxe4 {[%clk 0:02:06]}  Qb6 {[%clk 0:01:52]} 17. Be2 {[%clk 0:01:49]}  Bxe2 {[%clk 0:01:43]} 18. Kxe2 {[%clk 0:01:49]}  Rad8 {[%clk 0:01:43]} 19. Rhd1 {[%clk 0:01:47]}  Rfe8 {[%clk 0:01:41]} 20. b4 {[%clk 0:01:43]}  Qg6 {[%clk 0:01:36]} 21. Rbc1 {[%clk 0:00:33]}  Qh5+ {[%clk 0:01:32]} 22. Ke1 {[%clk 0:00:33]}  Nxd5 {[%clk 0:01:04]} 23. Ng3 {[%clk 0:00:18]}  Qf3 {[%clk 0:01:02]} 24. Rd3 {[%clk 0:00:06]}  Nf4 {[%clk 0:00:43]} 25. Rxd8 {[%clk 0:00:05]}  Ng2+ {[%clk 0:00:43]} 26. Kd2 {[%clk 0:00:05]}  Qxf2+ {[%clk 0:00:37]} 27. Qe2 {[%clk 0:00:05]}  Rxd8+ {[%clk 0:00:37]} 28. Kc3 {[%clk 0:00:05]}  Qxe2 {[%clk 0:00:37]} 29. Nxe2 {[%clk 0:00:06]}  Nxe3 {[%clk 0:00:38]} 30. Nd4 {[%clk 0:00:06]}  c6 {[%clk 0:00:36]} 31. Re1 {[%clk 0:00:06]}  Rxd4 {[%clk 0:00:34]} 32. Rxe3 {[%clk 0:00:04]}  Rd7 {[%clk 0:00:35]} 33. Re8+ {[%clk 0:00:04]}  Kh7 {[%clk 0:00:35]} 34. Kc4 {[%clk 0:00:04]}  g5 {[%clk 0:00:34]} 35. Kc5 {[%clk 0:00:05]}  f5 {[%clk 0:00:34]} 36. Rf8 {[%clk 0:00:04]}  f4 {[%clk 0:00:34]} 37. a4 {[%clk 0:00:04]}  a6 {[%clk 0:00:34]} 38. Kb6 {[%clk 0:00:03]}  Kg7 {[%clk 0:00:34]} 39. Rf5 {[%clk 0:00:03]}  Rf7 {[%clk 0:00:31]} 0-1


[Site "https://www.chess.com"]

[Event "Titled Tuesday Blitz November 08 Late 2022"]
[White "Kamsky, Gata"]
[Black "Fernandez De La Vara, Arnaldo"]
[WhiteFideId "2000024"]
[BlackFideId "3518388"]
[WhiteElo "2666"]
[BlackElo "2387"]
[Result "1-0"]
[Round "09"]
[TimeControl "180+1"]
[Date "2022.11.08"]
[WhiteClock "0:01:34"]
[BlackClock "0:00:01"]

1. c4 {[%clk 0:03:00]}  c5 {[%clk 0:02:44]} 2. g3 {[%clk 0:02:59]}  Nc6 {[%clk 0:02:44]} 3. Bg2 {[%clk 0:02:59]}  g6 {[%clk 0:02:45]} 4. Nc3 {[%clk 0:02:58]}  Bg7 {[%clk 0:02:45]} 5. d3 {[%clk 0:02:57]}  Nf6 {[%clk 0:02:45]} 6. e4 {[%clk 0:02:55]}  O-O {[%clk 0:02:45]} 7. Nge2 {[%clk 0:02:55]}  d6 {[%clk 0:02:45]} 8. O-O {[%clk 0:02:54]}  Bg4 {[%clk 0:02:46]} 9. f3 {[%clk 0:02:53]}  Bd7 {[%clk 0:02:44]} 10. h3 {[%clk 0:02:50]}  Ne8 {[%clk 0:02:38]} 11. f4 {[%clk 0:02:49]}  Nc7 {[%clk 0:02:39]} 12. f5 {[%clk 0:02:49]}  Nd4 {[%clk 0:02:19]} 13. Nxd4 {[%clk 0:02:32]}  Bxd4+ {[%clk 0:02:15]} 14. Kh1 {[%clk 0:02:30]}  b5 {[%clk 0:02:16]} 15. Bh6 {[%clk 0:02:28]}  Rb8 {[%clk 0:01:32]} 16. Qd2 {[%clk 0:02:20]}  a5 {[%clk 0:01:17]} 17. Rab1 {[%clk 0:02:16]}  a4 {[%clk 0:01:15]} 18. Ne2 {[%clk 0:02:06]}  Be5 {[%clk 0:01:08]} 19. b3 {[%clk 0:02:04]}  Bc6 {[%clk 0:00:45]} 20. Bxf8 {[%clk 0:02:03]}  Qxf8 {[%clk 0:00:42]} 21. g4 {[%clk 0:01:52]}  Na6 {[%clk 0:00:28]} 22. d4 {[%clk 0:01:44]}  cxd4 {[%clk 0:00:18]} 23. Nxd4 {[%clk 0:01:45]}  Bd7 {[%clk 0:00:17]} 24. Nxb5 {[%clk 0:01:44]}  Bxb5 {[%clk 0:00:15]} 25. cxb5 {[%clk 0:01:44]}  Rxb5 {[%clk 0:00:15]} 26. bxa4 {[%clk 0:01:44]}  Rc5 {[%clk 0:00:09]} 27. Rbc1 {[%clk 0:01:42]}  Qb8 {[%clk 0:00:06]} 28. Rxc5 {[%clk 0:01:39]}  Nxc5 {[%clk 0:00:07]} 29. a5 {[%clk 0:01:35]}  Qb5 {[%clk 0:00:06]} 30. Qd5 {[%clk 0:01:34]}  e6 {[%clk 0:00:03]} 31. fxe6 {[%clk 0:01:34]}  fxe6 {[%clk 0:00:01]} 32. Qa8+ {[%clk 0:01:34]} 1-0


[Site "https://www.chess.com"]

[Event "Titled Tuesday Blitz November 08 Late 2022"]
[White "Kollars, Dmitrij"]
[Black "Korchmar, Vasiliy"]
[WhiteFideId "12909572"]
[BlackFideId "24131750"]
[WhiteElo "2584"]
[BlackElo "2370"]
[Result "1-0"]
[Round "09"]
[TimeControl "180+1"]
[Date "2022.11.08"]
[WhiteClock "0:00:08"]
[BlackClock "0:00:02"]

1. e4 {[%clk 0:02:36]}  c5 {[%clk 0:02:59]} 2. Nf3 {[%clk 0:02:35]}  d6 {[%clk 0:02:59]} 3. d4 {[%clk 0:02:36]}  cxd4 {[%clk 0:03:00]} 4. Nxd4 {[%clk 0:02:36]}  Nf6 {[%clk 0:03:01]} 5. Nc3 {[%clk 0:02:37]}  Nc6 {[%clk 0:03:01]} 6. f3 {[%clk 0:02:34]}  e5 {[%clk 0:03:01]} 7. Nb3 {[%clk 0:02:34]}  Be7 {[%clk 0:03:01]} 8. Be3 {[%clk 0:02:34]}  O-O {[%clk 0:03:01]} 9. Qe2 {[%clk 0:02:34]}  a5 {[%clk 0:02:41]} 10. Na4 {[%clk 0:02:32]}  Be6 {[%clk 0:02:36]} 11. O-O-O {[%clk 0:02:28]}  Qe8 {[%clk 0:02:13]} 12. Kb1 {[%clk 0:02:22]}  Nd4 {[%clk 0:01:26]} 13. Bxd4 {[%clk 0:02:10]}  Qxa4 {[%clk 0:01:26]} 14. Be3 {[%clk 0:02:10]}  d5 {[%clk 0:01:10]} 15. Bc5 {[%clk 0:02:04]}  Rfe8 {[%clk 0:00:48]} 16. Qb5 {[%clk 0:02:01]}  Bd7 {[%clk 0:00:37]} 17. Qxa4 {[%clk 0:02:01]}  Bxa4 {[%clk 0:00:38]} 18. Bxe7 {[%clk 0:02:00]}  Rxe7 {[%clk 0:00:39]} 19. exd5 {[%clk 0:02:01]}  e4 {[%clk 0:00:27]} 20. Nc5 {[%clk 0:01:57]}  Be8 {[%clk 0:00:23]} 21. d6 {[%clk 0:01:55]}  Re5 {[%clk 0:00:24]} 22. Nxe4 {[%clk 0:01:55]}  Nxe4 {[%clk 0:00:24]} 23. fxe4 {[%clk 0:01:56]}  Rd8 {[%clk 0:00:24]} 24. Be2 {[%clk 0:01:03]}  Bc6 {[%clk 0:00:18]} 25. Bf3 {[%clk 0:00:58]}  Re6 {[%clk 0:00:14]} 26. Kc1 {[%clk 0:00:47]}  f6 {[%clk 0:00:09]} 27. Rd3 {[%clk 0:00:35]}  Rexd6 {[%clk 0:00:09]} 28. Rhd1 {[%clk 0:00:35]}  Rxd3 {[%clk 0:00:06]} 29. cxd3 {[%clk 0:00:36]}  Kf7 {[%clk 0:00:04]} 30. Kd2 {[%clk 0:00:36]}  g5 {[%clk 0:00:03]} 31. Ke3 {[%clk 0:00:35]}  Kg6 {[%clk 0:00:03]} 32. d4 {[%clk 0:00:34]}  h5 {[%clk 0:00:03]} 33. d5 {[%clk 0:00:30]}  Bd7 {[%clk 0:00:02]} 34. Rc1 {[%clk 0:00:30]}  g4 {[%clk 0:00:03]} 35. Be2 {[%clk 0:00:31]}  Re8 {[%clk 0:00:03]} 36. Kd4 {[%clk 0:00:31]}  Kg5 {[%clk 0:00:02]} 37. Rc7 {[%clk 0:00:30]}  Bc8 {[%clk 0:00:01]} 38. g3 {[%clk 0:00:29]}  h4 {[%clk 0:00:01]} 39. Rg7+ {[%clk 0:00:28]}  Kh6 {[%clk 0:00:01]} 40. Rc7 {[%clk 0:00:24]}  h3 {[%clk 0:00:02]} 41. d6 {[%clk 0:00:18]}  Rd8 {[%clk 0:00:01]} 42. Kd5 {[%clk 0:00:13]}  f5 {[%clk 0:00:02]} 43. e5 {[%clk 0:00:11]}  f4 {[%clk 0:00:02]} 44. gxf4 {[%clk 0:00:08]}  g3 {[%clk 0:00:03]} 45. hxg3 {[%clk 0:00:09]}  h2 {[%clk 0:00:03]} 46. Bf3 {[%clk 0:00:09]}  Bg4 {[%clk 0:00:03]} 47. Bh1 {[%clk 0:00:09]}  Rg8 {[%clk 0:00:02]} 48. Rc2 {[%clk 0:00:08]} 1-0


[Site "https://www.chess.com"]

[Event "Titled Tuesday Blitz November 08 Late 2022"]
[White "Leitao, Rafael"]
[Black "Forgacs, Attila Jr."]
[WhiteFideId "2101246"]
[BlackFideId "773654"]
[WhiteElo "2609"]
[BlackElo "2168"]
[Result "1-0"]
[Round "09"]
[TimeControl "180+1"]
[Date "2022.11.09"]
[WhiteClock "0:01:51"]
[BlackClock "0:00:46"]

1. c4 {[%clk 0:02:59]}  e5 {[%clk 0:02:59]} 2. Nc3 {[%clk 0:02:59]}  d6 {[%clk 0:02:59]} 3. g3 {[%clk 0:02:59]}  g6 {[%clk 0:03:00]} 4. Bg2 {[%clk 0:03:00]}  Bg7 {[%clk 0:03:00]} 5. Nf3 {[%clk 0:03:00]}  f5 {[%clk 0:03:00]} 6. d3 {[%clk 0:02:59]}  Nf6 {[%clk 0:02:59]} 7. O-O {[%clk 0:03:00]}  Nc6 {[%clk 0:02:57]} 8. Rb1 {[%clk 0:03:00]}  a5 {[%clk 0:02:56]} 9. a3 {[%clk 0:03:00]}  h6 {[%clk 0:02:56]} 10. b4 {[%clk 0:03:01]}  axb4 {[%clk 0:02:57]} 11. axb4 {[%clk 0:03:01]}  g5 {[%clk 0:02:58]} 12. Nd5 {[%clk 0:02:55]}  Nxd5 {[%clk 0:02:55]} 13. cxd5 {[%clk 0:02:55]}  Ne7 {[%clk 0:02:56]} 14. Qb3 {[%clk 0:02:27]}  f4 {[%clk 0:02:51]} 15. Bb2 {[%clk 0:02:21]}  Ng6 {[%clk 0:02:44]} 16. Rbc1 {[%clk 0:02:18]}  g4 {[%clk 0:02:19]} 17. Nd2 {[%clk 0:02:14]}  h5 {[%clk 0:02:19]} 18. Qc4 {[%clk 0:02:09]}  Qg5 {[%clk 0:01:45]} 19. Ne4 {[%clk 0:02:06]}  Qe7 {[%clk 0:01:19]} 20. Qxc7 {[%clk 0:02:02]}  Qxc7 {[%clk 0:00:58]} 21. Rxc7 {[%clk 0:02:01]}  Bf8 {[%clk 0:00:59]} 22. Rfc1 {[%clk 0:01:55]}  Bf5 {[%clk 0:00:54]} 23. Nf6+ {[%clk 0:01:55]}  Kd8 {[%clk 0:00:54]} 24. Be4 {[%clk 0:01:56]}  Bc8 {[%clk 0:00:46]} 25. Bxg6 {[%clk 0:01:51]} 1-0


[Site "https://www.chess.com"]

[Event "Titled Tuesday Blitz November 08 Late 2022"]
[White "Martinez Reyes, Pedro Ramon"]
[Black "Krishnan, Varun"]
[WhiteFideId "3901807"]
[BlackFideId "5054508"]
[WhiteElo "2354"]
[BlackElo "2544"]
[Result "1-0"]
[Round "09"]
[TimeControl "180+1"]
[Date "2022.11.09"]
[WhiteClock "0:00:27"]
[BlackClock "0:00:13"]

1. e4 {[%clk 0:03:00]}  c5 {[%clk 0:02:52]} 2. Nf3 {[%clk 0:03:00]}  d6 {[%clk 0:02:52]} 3. c3 {[%clk 0:03:00]}  Nf6 {[%clk 0:02:51]} 4. Bd3 {[%clk 0:02:52]}  g6 {[%clk 0:02:49]} 5. O-O {[%clk 0:02:51]}  Bg7 {[%clk 0:02:50]} 6. Bc2 {[%clk 0:02:52]}  O-O {[%clk 0:02:50]} 7. h3 {[%clk 0:02:52]}  b5 {[%clk 0:02:50]} 8. d4 {[%clk 0:02:52]}  Bb7 {[%clk 0:02:48]} 9. Re1 {[%clk 0:02:51]}  Qc7 {[%clk 0:02:45]} 10. Qe2 {[%clk 0:02:49]}  a6 {[%clk 0:02:43]} 11. a4 {[%clk 0:02:47]}  c4 {[%clk 0:02:38]} 12. axb5 {[%clk 0:02:43]}  axb5 {[%clk 0:02:37]} 13. Rxa8 {[%clk 0:02:44]}  Bxa8 {[%clk 0:02:36]} 14. Na3 {[%clk 0:02:45]}  Qb6 {[%clk 0:02:24]} 15. d5 {[%clk 0:02:28]}  Nbd7 {[%clk 0:02:19]} 16. Be3 {[%clk 0:02:28]}  Qa5 {[%clk 0:02:14]} 17. Bd4 {[%clk 0:02:23]}  Rc8 {[%clk 0:02:07]} 18. Bb1 {[%clk 0:02:14]}  Nc5 {[%clk 0:02:06]} 19. Qe3 {[%clk 0:01:57]}  Nfd7 {[%clk 0:02:02]} 20. Bxg7 {[%clk 0:01:56]}  Kxg7 {[%clk 0:02:01]} 21. e5 {[%clk 0:01:57]}  Bxd5 {[%clk 0:01:44]} 22. exd6 {[%clk 0:01:56]}  exd6 {[%clk 0:01:41]} 23. Qd4+ {[%clk 0:01:40]}  Nf6 {[%clk 0:01:40]} 24. Ng5 {[%clk 0:01:41]}  Nb3 {[%clk 0:01:30]} 25. Qf4 {[%clk 0:01:35]}  b4 {[%clk 0:01:28]} 26. cxb4 {[%clk 0:01:33]}  Qxb4 {[%clk 0:01:27]} 27. Re7 {[%clk 0:01:27]}  Nd2 {[%clk 0:01:20]} 28. Qd4 {[%clk 0:01:04]}  Nxb1 {[%clk 0:01:02]} 29. Nxb1 {[%clk 0:01:05]}  Rb8 {[%clk 0:00:56]} 30. Nxh7 {[%clk 0:00:49]}  Qxb2 {[%clk 0:00:45]} 31. Nc3 {[%clk 0:00:49]}  Kxh7 {[%clk 0:00:43]} 32. Qxf6 {[%clk 0:00:49]}  Be6 {[%clk 0:00:19]} 33. Kh2 {[%clk 0:00:36]}  Kg8 {[%clk 0:00:13]} 34. Rxe6 {[%clk 0:00:33]}  fxe6 {[%clk 0:00:12]} 35. Qxe6+ {[%clk 0:00:34]}  Kh8 {[%clk 0:00:12]} 36. Qf6+ {[%clk 0:00:32]}  Kg8 {[%clk 0:00:13]} 37. Qxg6+ {[%clk 0:00:32]}  Kh8 {[%clk 0:00:13]} 38. Qh6+ {[%clk 0:00:30]}  Kg8 {[%clk 0:00:13]} 39. Qxd6 {[%clk 0:00:30]}  Rf8 {[%clk 0:00:11]} 40. Qg6+ {[%clk 0:00:28]}  Kh8 {[%clk 0:00:11]} 41. Qh5+ {[%clk 0:00:28]}  Kg8 {[%clk 0:00:11]} 42. Qg4+ {[%clk 0:00:28]}  Kh8 {[%clk 0:00:11]} 43. Qh4+ {[%clk 0:00:29]}  Kg8 {[%clk 0:00:11]} 44. Qxc4+ {[%clk 0:00:29]}  Kh8 {[%clk 0:00:09]} 45. Qh4+ {[%clk 0:00:28]}  Kg8 {[%clk 0:00:09]} 46. Qg4+ {[%clk 0:00:29]}  Kh8 {[%clk 0:00:09]} 47. Ne4 {[%clk 0:00:30]}  Qe5+ {[%clk 0:00:08]} 48. g3 {[%clk 0:00:30]}  Qg7 {[%clk 0:00:07]} 49. Qe6 {[%clk 0:00:25]}  Qa7 {[%clk 0:00:04]} 50. h4 {[%clk 0:00:23]}  Rxf2+ {[%clk 0:00:03]} 51. Nxf2 {[%clk 0:00:23]}  Qxf2+ {[%clk 0:00:04]} 52. Kh3 {[%clk 0:00:24]}  Qf1+ {[%clk 0:00:04]} 53. Kg4 {[%clk 0:00:24]}  Qd1+ {[%clk 0:00:05]} 54. Kg5 {[%clk 0:00:24]}  Qd2+ {[%clk 0:00:05]} 55. Kg6 {[%clk 0:00:21]}  Qd3+ {[%clk 0:00:05]} 56. Kh6 {[%clk 0:00:19]}  Qh7+ {[%clk 0:00:04]} 57. Kg5 {[%clk 0:00:19]}  Qg7+ {[%clk 0:00:04]} 58. Kf4 {[%clk 0:00:19]}  Qd4+ {[%clk 0:00:04]} 59. Qe4 {[%clk 0:00:19]}  Qf2+ {[%clk 0:00:04]} 60. Qf3 {[%clk 0:00:19]}  Qd4+ {[%clk 0:00:04]} 61. Kg5 {[%clk 0:00:19]}  Qg7+ {[%clk 0:00:05]} 62. Kf4 {[%clk 0:00:19]}  Qd4+ {[%clk 0:00:05]} 63. Qe4 {[%clk 0:00:20]}  Qf2+ {[%clk 0:00:05]} 64. Kg4 {[%clk 0:00:20]}  Qf7 {[%clk 0:00:04]} 65. Qe5+ {[%clk 0:00:20]}  Kg8 {[%clk 0:00:03]} 66. Qg5+ {[%clk 0:00:21]}  Kh8 {[%clk 0:00:04]} 67. Qh5+ {[%clk 0:00:21]}  Qxh5+ {[%clk 0:00:02]} 68. Kxh5 {[%clk 0:00:22]}  Kg7 {[%clk 0:00:02]} 69. g4 {[%clk 0:00:22]}  Kh7 {[%clk 0:00:03]} 70. Kg5 {[%clk 0:00:23]}  Kg7 {[%clk 0:00:04]} 71. h5 {[%clk 0:00:23]}  Kh7 {[%clk 0:00:05]} 72. Kf6 {[%clk 0:00:24]}  Kh6 {[%clk 0:00:05]} 73. g5+ {[%clk 0:00:24]}  Kxh5 {[%clk 0:00:06]} 74. g6 {[%clk 0:00:25]}  Kh6 {[%clk 0:00:07]} 75. g7 {[%clk 0:00:25]}  Kh7 {[%clk 0:00:08]} 76. Kf7 {[%clk 0:00:25]}  Kh6 {[%clk 0:00:09]} 77. g8=Q {[%clk 0:00:25]}  Kh5 {[%clk 0:00:10]} 78. Qg6+ {[%clk 0:00:25]}  Kh4 {[%clk 0:00:11]} 79. Kf6 {[%clk 0:00:25]}  Kh3 {[%clk 0:00:12]} 80. Kf5 {[%clk 0:00:26]}  Kh2 {[%clk 0:00:13]} 81. Kf4 {[%clk 0:00:26]}  Kh1 {[%clk 0:00:13]} 82. Kf3 {[%clk 0:00:27]}  Kh2 {[%clk 0:00:13]} 83. Qg2# {[%clk 0:00:27]} 1-0


[Site "https://www.chess.com"]

[Event "Titled Tuesday Blitz November 08 Late 2022"]
[White "Mesa Cruz, Juan Carlos"]
[Black "Chlpik, Martin"]
[WhiteFideId "6423400"]
[BlackFideId "14923351"]
[WhiteElo "2059"]
[BlackElo "2109"]
[Result "1-0"]
[Round "09"]
[TimeControl "180+1"]
[Date "2022.11.09"]
[WhiteClock "0:00:03"]
[BlackClock "0:00:06"]

1. e4 {[%clk 0:03:00]}  c5 {[%clk 0:02:58]} 2. Nf3 {[%clk 0:03:00]}  d6 {[%clk 0:02:58]} 3. d4 {[%clk 0:03:00]}  cxd4 {[%clk 0:02:59]} 4. Nxd4 {[%clk 0:03:00]}  Nf6 {[%clk 0:03:00]} 5. Nc3 {[%clk 0:03:00]}  a6 {[%clk 0:03:00]} 6. Bg5 {[%clk 0:02:59]}  Nbd7 {[%clk 0:02:58]} 7. Bc4 {[%clk 0:02:58]}  Qb6 {[%clk 0:02:56]} 8. Bb3 {[%clk 0:02:53]}  e6 {[%clk 0:02:56]} 9. Qd2 {[%clk 0:02:51]}  Be7 {[%clk 0:02:34]} 10. f4 {[%clk 0:02:39]}  Nc5 {[%clk 0:02:32]} 11. Bxf6 {[%clk 0:02:24]}  Bxf6 {[%clk 0:02:29]} 12. O-O-O {[%clk 0:02:24]}  Qc7 {[%clk 0:02:18]} 13. g4 {[%clk 0:02:21]}  O-O {[%clk 0:02:09]} 14. g5 {[%clk 0:02:19]}  Be7 {[%clk 0:01:50]} 15. f5 {[%clk 0:02:06]}  b5 {[%clk 0:01:38]} 16. g6 {[%clk 0:01:26]}  b4 {[%clk 0:01:34]} 17. gxf7+ {[%clk 0:01:24]}  Kh8 {[%clk 0:01:20]} 18. Na4 {[%clk 0:00:33]}  Nxe4 {[%clk 0:01:18]} 19. Qg2 {[%clk 0:00:31]}  Bg5+ {[%clk 0:00:48]} 20. Kb1 {[%clk 0:00:28]}  Bb7 {[%clk 0:00:46]} 21. Nxe6 {[%clk 0:00:23]}  Qa5 {[%clk 0:00:20]} 22. Qh3 {[%clk 0:00:12]}  Bf6 {[%clk 0:00:12]} 23. Rhf1 {[%clk 0:00:07]}  Qb5 {[%clk 0:00:10]} 24. Rf3 {[%clk 0:00:04]}  Qe2 {[%clk 0:00:08]} 25. Qxh7+ {[%clk 0:00:02]}  Kxh7 {[%clk 0:00:06]} 26. Rh3+ {[%clk 0:00:03]} 1-0


[Site "https://www.chess.com"]

[Event "Titled Tuesday Blitz November 08 Late 2022"]
[White "Pinheiro, Iung Alicio de O."]
[Black "Urazayev, Arystanbek"]
[WhiteFideId "2104350"]
[BlackFideId "13709810"]
[WhiteElo "2283"]
[BlackElo "2441"]
[Result "0-1"]
[Round "09"]
[TimeControl "180+1"]
[Date "2022.11.08"]
[WhiteClock "0:00:04"]
[BlackClock "0:00:45"]

1. d4 {[%clk 0:03:00]}  Nf6 {[%clk 0:02:59]} 2. c4 {[%clk 0:02:59]}  g6 {[%clk 0:02:59]} 3. Nc3 {[%clk 0:02:59]}  Bg7 {[%clk 0:02:59]} 4. e4 {[%clk 0:02:59]}  d6 {[%clk 0:03:00]} 5. h3 {[%clk 0:02:55]}  e5 {[%clk 0:03:00]} 6. d5 {[%clk 0:02:53]}  a5 {[%clk 0:03:00]} 7. g4 {[%clk 0:02:32]}  Na6 {[%clk 0:03:00]} 8. Nge2 {[%clk 0:02:32]}  Nc5 {[%clk 0:02:55]} 9. Ng3 {[%clk 0:02:32]}  Nfd7 {[%clk 0:02:56]} 10. h4 {[%clk 0:02:25]}  Nb6 {[%clk 0:02:48]} 11. Be3 {[%clk 0:02:20]}  c6 {[%clk 0:02:45]} 12. h5 {[%clk 0:02:10]}  Bf6 {[%clk 0:02:45]} 13. Qd2 {[%clk 0:02:07]}  cxd5 {[%clk 0:02:41]} 14. cxd5 {[%clk 0:02:06]}  Bd7 {[%clk 0:02:40]} 15. Be2 {[%clk 0:01:56]}  a4 {[%clk 0:02:32]} 16. Kf1 {[%clk 0:01:47]}  O-O {[%clk 0:02:10]} 17. Kg2 {[%clk 0:01:43]}  Nc8 {[%clk 0:01:54]} 18. Rh2 {[%clk 0:01:22]}  b5 {[%clk 0:01:54]} 19. Nxb5 {[%clk 0:01:03]}  Bxb5 {[%clk 0:01:54]} 20. Bxb5 {[%clk 0:01:03]}  Rb8 {[%clk 0:01:55]} 21. Be2 {[%clk 0:00:57]}  Qb6 {[%clk 0:01:54]} 22. Rb1 {[%clk 0:00:57]}  Qb4 {[%clk 0:01:53]} 23. Qc2 {[%clk 0:00:45]}  Ne7 {[%clk 0:01:46]} 24. Bxc5 {[%clk 0:00:38]}  dxc5 {[%clk 0:01:45]} 25. Bc4 {[%clk 0:00:37]}  Nc8 {[%clk 0:01:45]} 26. b3 {[%clk 0:00:37]}  Nd6 {[%clk 0:01:44]} 27. Rbh1 {[%clk 0:00:36]}  axb3 {[%clk 0:01:20]} 28. axb3 {[%clk 0:00:36]}  Rb7 {[%clk 0:01:14]} 29. Qc1 {[%clk 0:00:28]}  Ra8 {[%clk 0:00:58]} 30. Rh3 {[%clk 0:00:27]}  Ra2 {[%clk 0:00:55]} 31. hxg6 {[%clk 0:00:26]}  fxg6 {[%clk 0:00:55]} 32. Qe3 {[%clk 0:00:14]}  Qd2 {[%clk 0:00:48]} 33. Qxd2 {[%clk 0:00:14]}  Rxd2 {[%clk 0:00:48]} 34. Nf1 {[%clk 0:00:12]}  Rb2 {[%clk 0:00:46]} 35. Re3 {[%clk 0:00:12]}  Bg5 {[%clk 0:00:46]} 36. Re1 {[%clk 0:00:07]}  Rf7 {[%clk 0:00:46]} 37. Re2 {[%clk 0:00:07]}  Nxc4 {[%clk 0:00:45]} 38. Rxb2 {[%clk 0:00:05]}  Nxb2 {[%clk 0:00:45]} 39. Nd2 {[%clk 0:00:04]}  Bxd2 {[%clk 0:00:45]} 0-1


[Site "https://www.chess.com"]